fUSD/lending_fUSD_20250112
["ID","MTS","AMOUNT","RATE_DAILY","PERIOD"]
[348610197,1736671857881,-500.0,0.00010911,2]
[348610198,1736671857890,-500.0,0.00010911,2]
[348610199,1736671857898,-500.0,0.00010911,2]
[348610200,1736671857907,-650.83,0.00010911,2]
[348610201,1736671857917,-500.0,0.00010911,2]
[348610202,1736671857926,-682.31,0.00010911,2]
[348610203,1736671857936,-519.58,0.00010911,2]
[348610204,1736671857945,-500.0,0.00010911,2]
[348610205,1736671857954,-782.25,0.00010911,2]
[348610206,1736671857964,-500.0,0.00010911,2]
[348610207,1736671857977,-500.0,0.00010911,2]
[348610208,1736671857986,-500.0,0.00010911,2]
[348610209,1736671857995,-1817.84,0.00010911,2]
[348610210,1736671858005,-500.0,0.00010911,2]
[348610211,1736671858014,-917.37,0.00010911,2]
[348610212,1736671858023,-515.92,0.00010911,2]
[348610213,1736671858033,-852.29,0.00010911,2]
[348610214,1736671858042,-1365.41,0.00010911,2]
[348610215,1736671858051,-933.79,0.00010911,2]
[348610216,1736671858060,-500.0,0.00010911,2]
[348610217,1736671858069,-500.0,0.00010911,2]
[348610218,1736671858079,-648.86,0.00010911,2]
[348610219,1736671858088,-3429.47,0.00010911,2]
[348610220,1736671858097,-500.0,0.00010911,2]
[348610221,1736671858106,-500.0,0.00010911,2]
[348610222,1736671858115,-1096.50954566,0.00010911,2]
[348610223,1736671858980,-327.07675,9.991e-05,2]
[348610224,1736671858991,-458.52136269,9.991e-05,2]
[348610225,1736671859002,-356.35926615,9.991e-05,2]
[348610226,1736671859021,-1926.99121169,9.991e-05,2]
[348610227,1736671859034,-500.0,9.997e-05,2]
[348610228,1736671859052,-500.0,9.997e-05,2]
[348610229,1736671859068,-252.001,0.00010218,2]
[348610230,1736671859082,-213.41022053,0.00010271,2]
[348610231,1736671859097,-500.0,0.00010271,2]
[348610232,1736671859113,-1094.48045434,0.00010911,2]
[348610233,1736671859130,-1432.44,0.00010911,2]
[348610234,1736671859143,-1083.87,0.00010911,2]
[348610235,1736671859158,-1543.98,0.00010911,2]
[348610236,1736671859173,-500.0,0.00010911,2]
[348610237,1736671859188,-836.48,0.00010911,2]
[348610238,1736671859204,-676.9,0.00010911,2]
[348610239,1736671859218,-633.55752718,0.00010911,2]
[348610240,1736671859249,-1372.96247282,0.00010911,2]
[348610241,1736671859262,-1352.33,0.00010911,2]
[348610242,1736671859279,-500.0,0.00010911,2]
[348610243,1736671859292,-845.86,0.00010911,2]
[348610244,1736671859304,-734.96234696,0.00010911,2]
[348610245,1736671859319,-441.75790001,0.00010911,2]
[348610246,1736671859338,-216.91975303,0.00010911,2]
[348610247,1736671859349,-151.0,0.00010912,2]
[348610248,1736671859361,-845.45,0.00010913,2]
[348610249,1736671859376,-500.0,0.00010913,2]
[348610250,1736671859389,-1089.1,0.00010913,2]
[348610251,1736671859400,-8.45532251,0.00010913,2]
[348610252,1736671866694,500.0,8.464e-05,2]
[348610254,1736672234759,500.0,9.998e-05,7]
[348610255,1736672268789,1028.85,8.219e-05,2]
[348610256,1736672394902,-1400.65,0.000122,31]
[348610257,1736672394930,-1400.65,0.000122,31]
[348610258,1736672394958,-1400.65,0.000122,31]
[348610259,1736672394984,-1400.65,0.000122,31]
[348610260,1736672395011,-1400.65,0.000122,31]
[348610261,1736672395037,-1400.65,0.000122,31]
[348610262,1736672395066,-1400.65,0.000122,31]
[348610263,1736672395094,-1400.65,0.000122,31]
[348610264,1736672395120,-1400.65,0.000122,31]
[348610265,1736672395146,-1400.65,0.000122,31]
[348610266,1736672395172,-1400.65,0.000122,31]
[348610267,1736672395198,-1400.65,0.000122,31]
[348610268,1736672395223,-1400.65,0.000122,31]
[348610269,1736672395249,-1400.65,0.000122,31]
[348610270,1736672395275,-1400.65,0.000122,31]
[348610271,1736672395300,-1400.65,0.000122,31]
[348610272,1736672395602,-1400.65,0.000176,31]
[348610273,1736672395629,-1400.65,0.000176,31]
[348610274,1736672395656,-1400.65,0.000176,31]
[348610275,1736672395684,-1400.65,0.000176,31]
[348610276,1736672395711,-1400.65,0.000176,31]
[348610277,1736672395738,-1400.65,0.000176,31]
[348610278,1736672395764,-1400.65,0.000176,31]
[348610279,1736672395790,-1400.65,0.000176,31]
[348610280,1736672395815,-1400.65,0.000176,31]
[348610281,1736672395841,-1400.65,0.000176,31]
[348610282,1736672395866,-1400.65,0.000176,31]
[348610283,1736672395892,-1400.65,0.000176,31]
[348610284,1736672395917,-1400.65,0.000176,31]
[348610285,1736672395943,-1400.65,0.000176,31]
[348610286,1736672395969,-1400.65,0.000176,31]
[348610287,1736672395995,-1400.65,0.000176,31]
[348610288,1736672396021,-1400.65,0.000176,31]
[348610289,1736672396047,-1400.65,0.000176,31]
[348610290,1736672396324,-1400.65,0.000176,31]
[348610291,1736672396353,-1400.65,0.000176,31]
[348610292,1736672396383,-1400.65,0.000176,31]
[348610293,1736672396412,-1400.65,0.000176,31]
[348610294,1736672396438,-1400.65,0.000176,31]
[348610295,1736672396466,-1400.65,0.000176,31]
[348610296,1736672396492,-2917.34098,0.00018,30]
[348610297,1736672396517,-150.0,0.00018456,30]
[348610298,1736672396557,-500.0,0.00019178,30]
[348610299,1736672396581,-267.02015279,0.00019178,30]
[348610300,1736672396611,-370992.8121216,0.0001998,30]
[348610301,1736672396638,-1508.32726918,0.0002,30]
[348610302,1736672396663,-21811.86493101,0.0002,30]
[348610303,1736672396687,-482.73971612,0.0002,30]
[348610304,1736672396712,-251.66136022,0.0002,60]
[348610305,1736672396736,-2000.0,0.0002,60]
[348610306,1736672396760,-2001.41,0.0002,30]
[348610307,1736672396785,-1000.0,0.0002,30]
[348610308,1736672396809,-2000.0,0.0002,90]
[348610309,1736672396834,-500.0,0.0002,30]
[348610310,1736672396858,-500.0,0.0002,30]
[348610311,1736672396882,-500.0,0.0002,30]
[348610312,1736672396905,-500.0,0.0002,30]
[348610313,1736672396929,-500.0,0.0002,30]
[348610314,1736672396953,-500.0,0.0002,30]
[348610315,1736672396977,-519.57978292,0.0002,30]
[348610316,1736672397000,-501.791297,0.0002,30]
[348610317,1736672397032,-800.0,0.00021,120]
[348610318,1736672397058,-5174.14,0.000219,30]
[348610319,1736672397081,-2000.0,0.00021917,30]
[348610320,1736672397105,-2000.0,0.00021917,30]
[348610321,1736672397128,-2000.0,0.00021917,30]
[348610322,1736672397153,-2000.0,0.00021917,30]
[348610323,1736672397178,-2000.0,0.00021917,30]
[348610324,1736672397202,-2000.0,0.00021917,30]
[348610325,1736672397226,-2000.0,0.00021917,30]
[348610326,1736672397249,-2000.0,0.00021917,30]
[348610327,1736672397273,-2000.0,0.00021917,30]
[348610328,1736672397298,-2000.0,0.00021917,30]
[348610329,1736672397322,-1000.0,0.00021917,120]
[348610330,1736672397346,-1000.0,0.00021917,120]
[348610331,1736672397369,-946.17578027,0.00021917,120]
[348610332,1736672397394,-1500.0,0.00021982,30]
[348610333,1736672397419,-2000.0,0.00022,120]
[348610334,1736672397442,-10036.963557,0.00022,30]
[348610335,1736672397468,-1500.0,0.000223,30]
[348610336,1736672397492,-2000.0,0.00022486,120]
[348610337,1736672397517,-1500.0,0.00022619,30]
[348610338,1736672397545,-1400.65,0.000229,31]
[348610339,1736672397572,-1400.65,0.000229,31]
[348610340,1736672397598,-1400.65,0.000229,31]
[348610341,1736672397625,-1400.65,0.000229,31]
[348610342,1736672397654,-1400.65,0.000229,31]
[348610343,1736672397683,-1400.65,0.000229,31]
[348610344,1736672397712,-1400.65,0.000229,31]
[348610345,1736672397739,-1400.65,0.000229,31]
[348610346,1736672397767,-1400.65,0.000229,31]
[348610347,1736672397796,-1400.65,0.000229,31]
[348610348,1736672397823,-1400.65,0.000229,31]
[348610349,1736672397851,-1400.65,0.000229,31]
[348610350,1736672397877,-1400.65,0.000229,31]
[348610351,1736672397913,-1400.65,0.000229,31]
[348610352,1736672397942,-1400.65,0.000229,31]
[348610353,1736672397972,-1400.65,0.000229,31]
[348610354,1736672398000,-1400.65,0.000229,31]
[348610355,1736672398027,-1400.65,0.000229,31]
[348610356,1736672398055,-1400.65,0.000229,31]
[348610357,1736672398082,-1400.65,0.000229,31]
[348610358,1736672398109,-1400.65,0.000229,31]
[348610359,1736672398136,-1400.65,0.000229,31]
[348610360,1736672398167,-1400.65,0.000229,31]
[348610361,1736672398193,-1400.65,0.000229,31]
[348610362,1736672398217,-1500.0,0.00022937,30]
[348610363,1736672398242,-1000.0,0.00023,120]
[348610364,1736672398267,-3000.0,0.00023,90]
[348610365,1736672398291,-500.0,0.00023,30]
[348610366,1736672398320,-500.0,0.00023,30]
[348610367,1736672398344,-500.0,0.00023,30]
[348610368,1736672398369,-500.0,0.00023,30]
[348610369,1736672398396,-500.0,0.00023,30]
[348610370,1736672398420,-2000.0,0.00023,30]
[348610371,1736672398445,-500.0,0.00023,30]
[348610372,1736672398471,-2000.0,0.00023,30]
[348610373,1736672398497,-500.0,0.00023,30]
[348610374,1736672398522,-2000.0,0.00023,30]
[348610375,1736672398547,-2000.0,0.00023,30]
[348610376,1736672398571,-2000.0,0.00023,30]
[348610377,1736672398596,-2000.0,0.00023,30]
[348610378,1736672398636,-2000.0,0.00023,30]
[348610379,1736672398666,-2000.0,0.00023,30]
[348610380,1736672398693,-2000.0,0.00023,30]
[348610381,1736672398719,-160.22841733,0.00023,30]
[348610382,1736672398746,-2000.0,0.00023,30]
[348610383,1736672398996,-810.0,0.00023,30]
[348610384,1736672399023,-159.32448219,0.00023,30]
[348610385,1736672399055,-1200.0,0.00023,30]
[348610386,1736672399081,-208.19527019,0.00023,30]
[348610387,1736672399107,-2000.0,0.00023,30]
[348610388,1736672399133,-688.45126726,0.00023,30]
[348610389,1736672399161,-1200.0,0.00023,30]
[348610390,1736672399186,-297.66753562,0.00023,30]
[348610391,1736672399211,-500.0,0.00023,30]
[348610392,1736672399236,-163.11946005,0.00023,30]
[348610393,1736672399262,-2000.0,0.00023,30]
[348610394,1736672399286,-1200.0,0.00023,30]
[348610395,1736672399314,-500.0,0.00023,30]
[348610396,1736672399338,-500.0,0.00023,30]
[348610397,1736672399362,-2000.0,0.00023,30]
[348610398,1736672399386,-1200.0,0.00023,30]
[348610399,1736672399413,-500.0,0.00023,30]
[348610400,1736672399442,-2000.0,0.00023,30]
[348610401,1736672399470,-1200.0,0.00023,30]
[348610402,1736672399494,-500.0,0.00023,30]
[348610403,1736672399520,-1200.0,0.00023,30]
[348610404,1736672399544,-159.55231542,0.00023,30]
[348610405,1736672399569,-1200.0,0.00023,30]
[348610406,1736672399594,-500.7,0.00023,30]
[348610407,1736672399619,-1200.0,0.00023,30]
[348610408,1736672399646,-1200.0,0.00023,30]
[348610409,1736672399670,-500.0,0.00023,30]
[348610410,1736672399701,-500.0,0.00023,30]
[348610411,1736672399726,-1200.0,0.00023,30]
[348610412,1736672399750,-500.0,0.00023,30]
[348610413,1736672399775,-500.0,0.00023,30]
[348610414,1736672399800,-500.0,0.00023,30]
[348610415,1736672399831,-1200.0,0.00023,30]
[348610416,1736672399856,-500.0,0.00023,30]
[348610417,1736672399881,-1200.0,0.00023,30]
[348610418,1736672399905,-987.04081401,0.00023,30]
[348610419,1736672399929,-500.0,0.00023,30]
[348610420,1736672399954,-1200.0,0.00023,30]
[348610421,1736672399978,-1200.0,0.00023,30]
[348610422,1736672400002,-500.0,0.00023,30]
[348610423,1736672400027,-500.0,0.00023,30]
[348610424,1736672400054,-500.0,0.00023,30]
[348610425,1736672400079,-500.0,0.00023,30]
[348610426,1736672400104,-500.0,0.00023,30]
[348610427,1736672400128,-500.0,0.00023,30]
[348610428,1736672400155,-412.27567433,0.00023,30]
[348610429,1736672400180,-500.0,0.00023,30]
[348610430,1736672400206,-500.0,0.00023,30]
[348610431,1736672400231,-500.0,0.00023,30]
[348610432,1736672400263,-500.0,0.00023,30]
[348610433,1736672400288,-500.0,0.00023,30]
[348610434,1736672400316,-500.0,0.00023,30]
[348610435,1736672400343,-500.0,0.00023,30]
[348610436,1736672400370,-500.0,0.00023,30]
[348610437,1736672400399,-547.74057139,0.00023,30]
[348610438,1736672400425,-500.0,0.00023,30]
[348610439,1736672400450,-500.0,0.00023,30]
[348610440,1736672400475,-470.2322072,0.00023,30]
[348610441,1736672400500,-500.0,0.00023,30]
[348610442,1736672400525,-700.0,0.00023,30]
[348610443,1736672400550,-500.0,0.00023,30]
[348610444,1736672400575,-500.0,0.00023,30]
[348610445,1736672400600,-156.98904889,0.00023,30]
[348610446,1736672400624,-700.0,0.00023,30]
[348610447,1736672400650,-700.0,0.00023,30]
[348610448,1736672400675,-955.35694634,0.00023,30]
[348610449,1736672400700,-500.0,0.00023,30]
[348610450,1736672400724,-500.0,0.00023,30]
[348610451,1736672400749,-700.0,0.00023,30]
[348610452,1736672400773,-622.69014555,0.00023,30]
[348610453,1736672400798,-500.0,0.00023,30]
[348610454,1736672400840,-700.0,0.00023,30]
[348610455,1736672400872,-500.0,0.00023,30]
[348610456,1736672400900,-500.0,0.00023,30]
[348610457,1736672400926,-532.12730891,0.00023,30]
[348610458,1736672400951,-500.0,0.00023,30]
[348610459,1736672400977,-700.0,0.00023,30]
[348610460,1736672401003,-500.0,0.00023,30]
[348610461,1736672401028,-700.0,0.00023,30]
[348610462,1736672401053,-500.0,0.00023,30]
[348610463,1736672401079,-500.0,0.00023,30]
[348610464,1736672401104,-500.0,0.00023,30]
[348610465,1736672401129,-700.0,0.00023,30]
[348610466,1736672401156,-500.0,0.00023,30]
[348610467,1736672401180,-700.0,0.00023,30]
[348610468,1736672401206,-500.0,0.00023,30]
[348610469,1736672401231,-700.0,0.00023,30]
[348610470,1736672401255,-500.0,0.00023,30]
[348610471,1736672401280,-500.0,0.00023,30]
[348610472,1736672401304,-700.0,0.00023,30]
[348610473,1736672401329,-500.0,0.00023,30]
[348610474,1736672401355,-700.0,0.00023,30]
[348610475,1736672401379,-500.0,0.00023,30]
[348610476,1736672401406,-500.0,0.00023,30]
[348610477,1736672401431,-700.0,0.00023,30]
[348610478,1736672401683,-700.0,0.00023,30]
[348610479,1736672401707,-500.0,0.00023,30]
[348610480,1736672401731,-700.0,0.00023,30]
[348610481,1736672401756,-700.0,0.00023,30]
[348610482,1736672401780,-500.0,0.00023,30]
[348610483,1736672401805,-700.0,0.00023,30]
[348610484,1736672401828,-700.0,0.00023,30]
[348610485,1736672401852,-700.0,0.00023,30]
[348610486,1736672401875,-700.0,0.00023,30]
[348610487,1736672401900,-700.0,0.00023,30]
[348610488,1736672401923,-700.0,0.00023,30]
[348610489,1736672401948,-700.0,0.00023,30]
[348610490,1736672401972,-700.0,0.00023,30]
[348610491,1736672401997,-500.0,0.00023,30]
[348610492,1736672402021,-700.0,0.00023,30]
[348610493,1736672402048,-500.0,0.00023,30]
[348610494,1736672402072,-187.50874038,0.00023,30]
[348610495,1736672402096,-700.0,0.00023,30]
[348610496,1736672402121,-700.0,0.00023,30]
[348610497,1736672402146,-939.70372389,0.00023,30]
[348610498,1736672402171,-700.0,0.00023,30]
[348610499,1736672402195,-500.0,0.00023119,120]
[348610500,1736672402220,-623.210213,0.00023119,120]
[348610501,1736672402244,-200.0,0.00023119,120]
[348610502,1736672402271,-1500.0,0.00023256,30]
[348610503,1736672402296,-2501.24400203,0.000235,30]
[348610504,1736672402323,-1500.0,0.00023574,30]
[348610505,1736672402350,-2000.0,0.00023827,120]
[348610506,1736672402373,-1500.0,0.00023893,30]
[348610507,1736672402401,-632.13893264,0.00024,120]
[348610508,1736672402426,-2000.0,0.00024,120]
[348610509,1736672402450,-1500.0,0.00024212,30]
[348610510,1736672402476,-546.00612607,0.000244,30]
[348610511,1736672402502,-1500.0,0.0002453,30]
[348610512,1736672402526,-250.950034,0.00024619,120]
[348610513,1736672402551,-200.0,0.00024619,120]
[348610514,1736672402577,-2029.42,0.00024657,120]
[348610515,1736672402603,-2029.42,0.00024657,120]
[348610516,1736672402632,-2029.42,0.00024657,120]
[348610517,1736672402660,-2029.42,0.00024657,120]
[348610518,1736672402685,-2029.42,0.00024657,120]
[348610519,1736672402711,-2029.42,0.00024657,120]
[348610520,1736672402739,-2029.42,0.00024657,120]
[348610521,1736672402764,-2029.42,0.00024657,120]
[348610522,1736672402789,-2029.42,0.00024657,120]
[348610523,1736672402814,-2029.42,0.00024657,120]
[348610524,1736672402840,-2029.42,0.00024657,120]
[348610525,1736672402866,-2029.42,0.00024657,120]
[348610526,1736672402890,-2029.42,0.00024657,120]
[348610527,1736672402918,-2029.42,0.00024657,120]
[348610528,1736672402942,-2029.42,0.00024657,120]
[348610529,1736672402966,-2029.42,0.00024657,120]
[348610530,1736672402991,-2029.42,0.00024657,120]
[348610531,1736672403016,-2029.42,0.00024657,120]
[348610532,1736672403043,-2029.42,0.00024657,120]
[348610533,1736672403069,-2029.42,0.00024657,120]
[348610534,1736672403095,-2029.42,0.00024657,120]
[348610535,1736672403121,-2029.42,0.00024657,120]
[348610536,1736672403148,-2029.42,0.00024657,120]
[348610537,1736672403175,-2029.51387581,0.00024657,120]
[348610538,1736672403201,-289.3,0.00024658,120]
[348610539,1736672403226,-1500.0,0.00024849,30]
[348610540,1736672403252,-280.82518413,0.0002496,60]
[348610541,1736672403277,-780.9635228,0.0002496,60]
[348610542,1736672403303,-257.0,0.0002497,30]
[348610543,1736672403327,-257.0,0.0002497,30]
[348610544,1736672403351,-150.5,0.0002497,120]
[348610545,1736672403376,-150.5,0.0002497,120]
[348610546,1736672403403,-150.5,0.0002497,120]
[348610547,1736672403428,-796.0,0.0002497,120]
[348610548,1736672403452,-796.0,0.0002497,120]
[348610549,1736672403479,-413.0,0.0002497,120]
[348610550,1736672403505,-413.0,0.0002497,120]
[348610551,1736672403531,-257.0,0.0002498,30]
[348610552,1736672403556,-257.0,0.0002498,30]
[348610553,1736672403581,-257.0,0.0002498,30]
[348610554,1736672403606,-260.57,0.0002498,30]
[348610555,1736672403631,-150.5,0.0002498,120]
[348610556,1736672403659,-150.5,0.0002498,120]
[348610557,1736672403684,-150.5,0.0002498,120]
[348610558,1736672403710,-150.5,0.0002498,120]
[348610559,1736672403736,-150.5,0.0002498,120]
[348610560,1736672403761,-796.0,0.0002498,120]
[348610561,1736672403787,-796.0,0.0002498,120]
[348610562,1736672403813,-796.0,0.0002498,120]
[348610563,1736672403840,-413.0,0.0002498,120]
[348610564,1736672403867,-413.0,0.0002498,120]
[348610565,1736672403893,-413.0,0.0002498,120]
[348610566,1736672403922,-420.25,0.0002498,120]
[348610567,1736672403947,-805.82,0.0002498,120]
[348610568,1736672403973,-257.0,0.0002499,30]
[348610569,1736672403998,-257.0,0.0002499,30]
[348610570,1736672404023,-257.0,0.0002499,30]
[348610571,1736672404049,-257.0,0.0002499,30]
[348610572,1736672404075,-150.5,0.0002499,120]
[348610573,1736672404271,-150.5,0.0002499,120]
[348610574,1736672404300,-150.5,0.0002499,120]
[348610575,1736672404331,-150.5,0.0002499,120]
[348610576,1736672404361,-150.5,0.0002499,120]
[348610577,1736672404387,-179.17,0.0002499,120]
[348610578,1736672404415,-796.0,0.0002499,120]
[348610579,1736672404441,-796.0,0.0002499,120]
[348610580,1736672404467,-796.0,0.0002499,120]
[348610581,1736672404492,-796.0,0.0002499,120]
[348610582,1736672404518,-413.0,0.0002499,120]
[348610583,1736672404543,-413.0,0.0002499,120]
[348610584,1736672404569,-413.0,0.0002499,120]
[348610585,1736672404593,-413.0,0.0002499,120]
[348610586,1736672404619,-161.62,0.0002499,120]
[348610587,1736672404644,-265.12,0.0002499,120]
[348610588,1736672404672,-14418.04748184,0.00025,30]
[348610589,1736672404698,-1226.22677176,0.00025,30]
[348610590,1736672404724,-150.0,0.00025,120]
[348610591,1736672404751,-375.60126616,0.00025,60]
[348610592,1736672404778,-1000.0,0.00025,120]
[348610593,1736672404803,-616.88155318,0.00025,120]
[348610594,1736672404828,-309.0,0.00025,30]
[348610595,1736672404853,-1149.9718839,0.00025,120]
[348610596,1736672404879,-22797.45168539,0.00025,120]
[348610597,1736672404905,-394.0,0.00025,60]
[348610598,1736672404931,-1500.0,0.00025167,30]
[348610599,1736672404956,-2000.0,0.00025169,120]
[348610600,1736672404988,-1500.0,0.00025486,30]
[348610601,1736672405016,-11851.0,0.000255,119]
[348610602,1736672405044,-500.0,0.00025519,120]
[348610603,1736672405071,-1500.0,0.00025804,30]
[348610604,1736672405100,-2000.0,0.00026,120]
[348610605,1736672405126,-879.50285,0.00026088,30]
[348610606,1736672405153,-500.0,0.00026119,120]
[348610607,1736672405179,-240.775265,0.00026119,120]
[348610608,1736672405206,-1500.0,0.00026123,30]
[348610609,1736672405235,-3480.72741793,0.000262,120]
[348610610,1736672405262,-879.50285,0.00026288,30]
[348610611,1736672405289,-1500.0,0.00026442,30]
[348610612,1736672405317,-879.50285,0.00026488,30]
[348610613,1736672405344,-300.000099,0.000265,120]
[348610614,1736672405370,-2000.0,0.00026511,120]
[348610615,1736672405396,-879.50285,0.00026688,30]
[348610616,1736672405427,-500.0,0.00026719,120]
[348610617,1736672405454,-1500.0,0.0002676,30]
[348610618,1736672405483,-1098.11777689,0.00026898,32]
[348610619,1736672405510,-100000.0,0.00027,30]
[348610620,1736672405536,-806.74121935,0.00027,120]
[348610621,1736672405563,-678.59217011,0.00027,120]
[348610622,1736672405588,-2000.0,0.00027,120]
[348610623,1736672405614,-1000.0,0.00027,120]
[348610624,1736672405640,-105302.61380736,0.00027,30]
[348610625,1736672405668,-1500.0,0.00027079,30]
[348610626,1736672405694,-879.50285,0.00027088,30]
[348610627,1736672405722,-348.94241648,0.000272,44]
[348610628,1736672405749,-348.94241647,0.000272,44]
[348610629,1736672405776,-348.94241647,0.000272,44]
[348610630,1736672405803,-348.94241647,0.000272,44]
[348610631,1736672405829,-348.94241647,0.000272,44]
[348610632,1736672405857,-879.50285,0.00027288,30]
[348610633,1736672405885,-500.0,0.00027319,120]
[348610634,1736672405910,-1162.89833872,0.0002736,120]
[348610635,1736672405936,-2000.0,0.00027397,30]
[348610636,1736672405963,-2000.0,0.00027397,30]
[348610637,1736672405989,-2000.0,0.00027397,30]
[348610638,1736672406016,-2000.0,0.00027397,30]
[348610639,1736672406042,-2000.0,0.00027397,30]
[348610640,1736672406068,-2000.0,0.00027397,30]
[348610641,1736672406093,-2000.0,0.00027397,30]
[348610642,1736672406118,-2000.0,0.00027397,30]
[348610643,1736672406143,-2000.0,0.00027397,30]
[348610644,1736672406172,-2000.0,0.00027397,30]
[348610645,1736672406196,-2000.0,0.00027397,30]
[348610646,1736672406221,-2000.0,0.00027397,30]
[348610647,1736672406247,-2000.0,0.00027397,30]
[348610648,1736672406271,-2000.0,0.00027397,30]
[348610649,1736672406295,-2000.0,0.00027397,30]
[348610650,1736672406325,-2000.0,0.00027397,30]
[348610651,1736672406349,-2000.0,0.00027397,30]
[348610652,1736672406374,-2000.0,0.00027397,30]
[348610653,1736672406399,-2000.0,0.00027397,30]
[348610654,1736672406424,-1696.75557924,0.00027397,30]
[348610655,1736672406449,-200.0,0.00027397,60]
[348610656,1736672406475,-1873.45813252,0.00027397,30]
[348610657,1736672406500,-56115.2326018,0.00027397,59]
[348610658,1736672406526,-150.0,0.00027397,120]
[348610659,1736672406551,-879.50285,0.00027488,30]
[348610660,1736672406577,-879.50285,0.00027688,30]
[348610661,1736672406601,-907.437419,0.00027852,120]
[348610662,1736672406625,-500.0,0.00027919,120]
[348610663,1736672406650,-150.0,0.00027945,120]
[348610664,1736672406674,-177.28,0.00027945,91]
[348610665,1736672406699,-427.05356432,0.00028,120]
[348610666,1736672406724,-2000.0,0.00028,120]
[348610667,1736672406928,-1400.65,0.000282,31]
[348610668,1736672406958,-1400.65,0.000282,31]
[348610669,1736672406985,-1400.65,0.000282,31]
[348610670,1736672407016,-1400.65,0.000282,31]
[348610671,1736672407045,-1400.65,0.000282,31]
[348610672,1736672407073,-1400.65,0.000282,31]
[348610673,1736672407104,-1400.65,0.000282,31]
[348610674,1736672407133,-1400.65,0.000282,31]
[348610675,1736672407162,-1400.65,0.000282,31]
[348610676,1736672407190,-1400.65,0.000282,31]
[348610677,1736672407217,-1400.65,0.000282,31]
[348610678,1736672407245,-1400.65,0.000282,31]
[348610679,1736672407274,-1400.65,0.000282,31]
[348610680,1736672407302,-1400.65,0.000282,31]
[348610681,1736672407329,-1400.65,0.000282,31]
[348610682,1736672407358,-1400.65,0.000282,31]
[348610683,1736672407387,-1400.65,0.000282,31]
[348610684,1736672407417,-1400.65,0.000282,31]
[348610685,1736672407446,-1400.65,0.000282,31]
[348610686,1736672407476,-1400.65,0.000282,31]
[348610687,1736672407504,-1400.65,0.000282,31]
[348610688,1736672407533,-1400.65,0.000282,31]
[348610689,1736672407562,-1400.65,0.000282,31]
[348610690,1736672407590,-1400.65,0.000282,31]
[348610691,1736672407615,-153.94613,0.000283,120]
[348610692,1736672407642,-150.0,0.000283,120]
[348610693,1736672407668,-555.55555,0.000284,120]
[348610694,1736672407695,-255.55555,0.000284,120]
[348610695,1736672407721,-500.0,0.00028519,120]
[348610696,1736672407747,-1800.0,0.00029,30]
[348610697,1736672407774,-1000.0,0.00029,120]